[Event "HUN-ch Preliminary 2019"]
[Site "Budapest"]
[Date "2019.12.05"]
[Round "1.2"]
[White "Mihok, Oliver"]
[Black "Galyas, Miklos"]
[Result "1-0"]
[ECO "B06"]
[WhiteElo "2567"]
[BlackElo "2477"]
[Annotator "ChessBase"]
[PlyCount "71"]
[EventDate "2019.12.04"]
[EventType "k.o."]
[EventCountry "HUN"]
[SourceTitle "playchess.com"]
[Source "ChessBase"]
[SourceQuality "1"]
[TimeControl "40/5400+30:1800+30"]

1. e4 {[%emt 0:00:03]} d6 {[%emt 0:00:09]} 2. d4 {[%emt 0:00:05]} g6 {[%emt 0:00:12]} 3. Nc3 {[%emt 0:02:03]} c6 {[%emt 0:00:13]} 4. Nf3 {[%emt 0:03:48]} Bg7 {[%emt 0:00:41]} 5. Bc4 {[%emt 0:00:08]} Nf6 {[%emt 0:00:28]} 6. Bb3 {[%emt 0:02:41]} O-O {[%emt 0:01:57]} 7. O-O {[%emt 0:00:07]} Nbd7 {[%emt 0:10:30]} 8. e5 {[%emt 0:07:09]} dxe5 {[%emt 0:00:26]} 9. dxe5 {[%emt 0:00:17]} Nd5 {[%emt 0:02:43]} 10. Bxd5 {[%emt 0:03:05]} cxd5 {[%emt 0:00:05]} 11. Qxd5 {[%emt 0:00:10]} Nb6 {[%emt 0:11:30]} 12. Qe4 {[%emt 0:10:27]} Bd7 {[%emt 0:08:22]} 13. Qxb7 {[%emt 0:07:35]} Rb8 {[%emt 0:02:36]} 14. Qe4 {[%emt 0:04:27]} Qc7 {[%emt 0:02:41]} 15. Bf4 {[%emt 0:06:28]} Bc6 {[%emt 0:01:12]} 16. Qe3 {[%emt 0:07:48]} Qb7 {[%emt 0:07:28]} 17. b3 {[%emt 0:06:30]} Rbc8 {[%emt 0:02:36]} 18. Rad1 {[%emt 0:04:30]} Bxf3 {[%emt 0:05:14]} 19. gxf3 {[%emt 0:00:06]} Qc6 {[%emt 0:17:43]} 20. Rd3 {[%emt 0:01:42]} Qe6 {[%emt 0:03:29]} 21. Rfd1 {[%emt 0:04:08]} Qh3 {[%emt 0:04:04]} 22. R1d2 {[%emt 0:02:11]} e6 {[%emt 0:05:28]} 23. a4 {[%emt 0:07:00]} h5 {[%emt 0:04:45]} 24. a5 {[%emt 0:02:52]} Rxc3 {[%emt 0:00:08]} 25. Rxc3 {[%emt 0:01:03]} Nd5 {[%emt 0:00:03]} 26. Rxd5 {[%emt 0:01:32]} exd5 {[%emt 0:00:02]} 27. Rc7 {[%emt 0:02:35]} Re8 {[%emt 0:04:12]} 28. Bg3 {[%emt 0:03:36]} Qe6 {[%emt 0:02:10]} 29. h4 {[%emt 0:01:07]} a6 {[%emt 0:01:02]} 30. Kg2 {[%emt 0:01:25]} Bf8 {[%emt 0:01:25]} 31. Qb6 {[%emt 0:01:05]} Qf5 {[%emt 0:00:46]} 32. Qxa6 {[%emt 0:00:28]} Bg7 {[%emt 0:00:56]} 33. Qd3 {[%emt 0:00:50]} Qe6 {[%emt 0:00:04]} 34. Rc5 {[%emt 0:01:28]} Rd8 {[%emt 0:00:11]} 35. Qd4 {[%emt 0:02:05]} Kh7 {[%emt 0:00:17]} 36. c4 {[%emt 0:00:14]} 1-0

[Event "HUN-ch Preliminary 2019"]
[Site "Budapest"]
[Date "2019.12.05"]
[Round "1.2"]
[White "Kantor, Gergely"]
[Black "Nemeth, Miklos"]
[Result "1-0"]
[ECO "A05"]
[WhiteElo "2541"]
[BlackElo "2496"]
[Annotator "ChessBase"]
[PlyCount "67"]
[EventDate "2019.12.04"]
[EventType "k.o."]
[EventCountry "HUN"]
[SourceTitle "playchess.com"]
[Source "ChessBase"]
[SourceQuality "1"]
[TimeControl "40/5400+30:1800+30"]

1. Nf3 {[%emt 0:00:24]} Nf6 {[%emt 0:00:43]} 2. g3 {[%emt 0:00:03]} b6 {[%emt 0:00:06]} 3. Bg2 {[%emt 0:00:04]} Bb7 {[%emt 0:00:04]} 4. O-O {[%emt 0:00:09]} e6 {[%emt 0:00:03]} 5. d3 {[%emt 0:00:06]} d5 {[%emt 0:01:30]} 6. Nbd2 {[%emt 0:00:11]} Be7 {[%emt 0:04:04]} 7. e4 {[%emt 0:00:28]} dxe4 {[%emt 0:03:06]} 8. dxe4 {[%emt 0:00:09]} O-O {[%emt 0:01:59]} 9. Qe2 {[%emt 0:00:03]} Qc8 {[%emt 0:08:24]} 10. e5 {[%emt 0:03:25]} Nfd7 {[%emt 0:00:16]} 11. Ne4 {[%emt 0:01:35]} Nc6 {[%emt 0:06:27]} 12. Bf4 {[%emt 0:02:19]} a5 {[%emt 0:01:22]} 13. h4 {[%emt 0:05:30]} a4 {[%emt 0:05:26]} 14. h5 {[%emt 0:03:01]} Ra5 {[%emt 0:04:39]} 15. h6 {[%emt 0:21:41]} g6 {[%emt 0:01:11]} 16. Ned2 {[%emt 0:18:41]} Nb4 {[%emt 0:07:53]} 17. a3 {[%emt 0:07:14]} Nd5 {[%emt 0:02:17]} 18. Bg5 {[%emt 0:01:13]} Qd8 {[%emt 0:03:48]} 19. Bxe7 {[%emt 0:01:39]} Nxe7 {[%emt 0:00:05]} 20. Rfd1 {[%emt 0:01:32]} Nf5 {[%emt 0:07:55]} 21. Ne4 {[%emt 0:02:43]} Rd5 {[%emt 0:01:21]} 22. Nc3 {[%emt 0:11:11]} Rxd1+ {[%emt 0:02:56]} 23. Rxd1 {[%emt 0:00:26]} Qc8 {[%emt 0:10:31]} 24. Nh2 {[%emt 0:07:39]} Bxg2 {[%emt 0:03:05]} 25. Kxg2 {[%emt 0:00:14]} f6 {[%emt 0:00:36]} 26. Ng4 {[%emt 0:01:11]} fxe5 {[%emt 0:02:46]} 27. Nxe5 Qa8+ {[%emt 0:05:10]} 28. Kg1 {[%emt 0:00:45]} Nf6 {[%emt 0:00:08]} 29. Nd7 {[%emt 0:00:39]} Rf7 {[%emt 0:11:04]} 30. Qxe6 {[%emt 0:00:42]} Nxd7 {[%emt 0:01:23]} 31. Rxd7 {[%emt 0:00:08]} Nxh6 {[%emt 0:00:12]} 32. Ne4 {[%emt 0:03:34]} Qc8 {[%emt 0:01:18]} 33. Nf6+ {[%emt 0:00:14]} Kh8 {[%emt 0:00:07]} 34. Rxf7 {[%emt 0:00:27]} 1-0

[Event "HUN-ch Preliminary 2019"]
[Site "Budapest"]
[Date "2019.12.05"]
[Round "1.2"]
[White "Medvegy, Zoltan"]
[Black "Kaczur, Florian"]
[Result "1/2-1/2"]
[ECO "A06"]
[WhiteElo "2533"]
[BlackElo "2478"]
[Annotator "ChessBase"]
[PlyCount "58"]
[EventDate "2019.12.04"]
[EventType "k.o."]
[EventCountry "HUN"]
[SourceTitle "playchess.com"]
[Source "ChessBase"]
[SourceQuality "1"]
[TimeControl "40/5400+30:1800+30"]

1. Nf3 {[%emt 0:00:03]} d5 {[%emt 0:00:34]} 2. e3 {[%emt 0:00:10]} Nf6 {[%emt 0:00:50]} 3. c4 {[%emt 0:00:11]} e6 {[%emt 0:00:30]} 4. Nc3 {[%emt 0:00:28]} dxc4 {[%emt 0:06:36]} 5. Bxc4 {[%emt 0:00:19]} a6 {[%emt 0:00:04]} 6. O-O {[%emt 0:01:39]} b5 {[%emt 0:00:58]} 7. Bb3 {[%emt 0:02:45]} c5 {[%emt 0:02:45]} 8. a4 {[%emt 0:10:53]} b4 {[%emt 0:01:50]} 9. Ne2 {[%emt 0:00:55]} Nc6 {[%emt 0:01:42]} 10. d3 {[%emt 0:08:46]} Be7 {[%emt 0:03:46]} 11. e4 {[%emt 0:00:13]} Bb7 {[%emt 0:01:23]} 12. Qc2 {[%emt 0:13:38]} Rc8 {[%emt 0:05:04]} 13. h3 {[%emt 0:03:27]} Na5 {[%emt 0:02:47]} 14. Ne5 {[%emt 0:03:54]} O-O {[%emt 0:03:54]} 15. Nc4 {[%emt 0:01:57]} Nxc4 {[%emt 0:09:04]} 16. Bxc4 {[%emt 0:02:02]} Nd7 {[%emt 0:00:06]} 17. Be3 {[%emt 0:02:03]} Nb6 {[%emt 0:03:47]} 18. Nc1 {[%emt 0:04:42]} Bf6 {[%emt 0:05:45]} 19. Nb3 {[%emt 0:04:45]} Nxc4 {[%emt 0:03:10]} 20. dxc4 {[%emt 0:00:02]} Bd4 {[%emt 0:04:26]} 21. Bxd4 {[%emt 0:01:35]} cxd4 {[%emt 0:00:57]} 22. Qd3 {[%emt 0:00:03]} e5 {[%emt 0:00:28]} 23. f3 {[%emt 0:01:19]} Qc7 {[%emt 0:04:00]} 24. c5 {[%emt 0:05:30]} a5 {[%emt 0:03:36]} 25. Rfc1 {[%emt 0:07:14]} Bc6 {[%emt 0:00:47]} 26. Qa6 {[%emt 0:04:24]} Ra8 {[%emt 0:00:17]} 27. Qb6 {[%emt 0:00:36]} Rfc8 {[%emt 0:00:17]} 28. Qxc7 {[%emt 0:07:23]} Rxc7 {[%emt 0:00:31]} 29. Kf2 {[%emt 0:03:17]} f6 {[%emt 0:02:27]} 1/2-1/2

[Event "HUN-ch Preliminary 2019"]
[Site "Budapest"]
[Date "2019.12.05"]
[Round "1.2"]
[White "Aczel, Gergely"]
[Black "Csonka, Balazs"]
[Result "1-0"]
[ECO "E46"]
[WhiteElo "2523"]
[BlackElo "2479"]
[Annotator "ChessBase"]
[PlyCount "133"]
[EventDate "2019.12.04"]
[EventType "k.o."]
[EventCountry "HUN"]
[SourceTitle "playchess.com"]
[Source "ChessBase"]
[SourceQuality "1"]
[TimeControl "40/5400+30:1800+30"]

1. d4 {[%emt 0:00:04]} Nf6 {[%emt 0:00:06]} 2. c4 {[%emt 0:00:05]} e6 {[%emt 0:00:05]} 3. Nc3 {[%emt 0:00:05]} Bb4 {[%emt 0:00:06]} 4. e3 {[%emt 0:00:05]} O-O {[%emt 0:00:08]} 5. Bd2 {[%emt 0:00:03]} c5 {[%emt 0:00:19]} 6. a3 {[%emt 0:00:05]} Bxc3 {[%emt 0:00:07]} 7. Bxc3 {[%emt 0:00:04]} Ne4 {[%emt 0:00:08]} 8. Ne2 {[%emt 0:00:09]} d6 {[%emt 0:10:33]} 9. Qd3 {[%emt 0:00:09]} Nxc3 {[%emt 0:01:12]} 10. Nxc3 {[%emt 0:00:05]} cxd4 {[%emt 0:15:04]} 11. Qxd4 {[%emt 0:06:16]} Nc6 {[%emt 0:00:16]} 12. Qd2 {[%emt 0:01:28]} Qe7 {[%emt 0:04:07]} 13. Be2 {[%emt 0:04:22]} b6 {[%emt 0:07:34]} 14. O-O {[%emt 0:01:03]} Bb7 {[%emt 0:02:46]} 15. Rfd1 {[%emt 0:00:38]} Rfd8 {[%emt 0:00:48]} 16. b3 {[%emt 0:02:36]} a6 {[%emt 0:11:37]} 17. e4 {[%emt 0:11:37]} Rab8 {[%emt 0:08:34]} 18. Qe3 {[%emt 0:00:50]} Ba8 {[%emt 0:00:33]} 19. Rac1 {[%emt 0:03:04]} h6 {[%emt 0:08:32]} 20. b4 {[%emt 0:01:11]} e5 {[%emt 0:03:48]} 21. Bf1 {[%emt 0:13:35]} a5 {[%emt 0:05:18]} 22. Nd5 {[%emt 0:01:23]} Qg5 {[%emt 0:03:19]} 23. bxa5 {[%emt 0:18:43]} Nxa5 {[%emt 0:05:58]} 24. Qxg5 {[%emt 0:03:29]} hxg5 {[%emt 0:00:08]} 25. Rb1 {[%emt 0:01:03]} Bxd5 {[%emt 0:04:02]} 26. cxd5 {[%emt 0:02:02]} Rdc8 {[%emt 0:01:54]} 27. Rb4 {[%emt 0:11:54]} Rc3 {[%emt 0:00:09]} 28. a4 {[%emt 0:00:23]} Rb3 {[%emt 0:00:14]} 29. Rb1 {[%emt 0:00:52]} Rxb4 {[%emt 0:00:17]} 30. Rxb4 {[%emt 0:00:02]} Kf8 {[%emt 0:00:21]} 31. g3 {[%emt 0:01:26]} Ke7 {[%emt 0:01:05]} 32. Rb1 {[%emt 0:00:24]} Kd8 {[%emt 0:01:30]} 33. Kg2 {[%emt 0:02:39]} Kc7 {[%emt 0:01:07]} 34. Rc1+ {[%emt 0:01:37]} Kb7 {[%emt 0:00:27]} 35. Rc3 {[%emt 0:02:14]} Rh8 {[%emt 0:00:58]} 36. h3 {[%emt 0:00:18]} Kb8 {[%emt 0:00:58]} 37. Kf3 {[%emt 0:02:33]} Rc8 {[%emt 0:02:06]} 38. Rxc8+ {[%emt 0:00:06]} Kxc8 {[%emt 0:00:05]} 39. Kg4 {[%emt 0:00:16]} Nb3 {[%emt 0:01:23]} 40. Bd3 {[%emt 0:00:00]} Kd8 {[%emt 0:00:00]} 41. Kxg5 {[%emt 0:03:30]} Ke7 {[%emt 0:03:45]} 42. h4 {[%emt 0:06:42]} Nd4 {[%emt 0:02:44]} 43. f4 {[%emt 0:05:28]} Nf3+ {[%emt 0:03:22]} 44. Kg4 {[%emt 0:01:46]} Ne1 {[%emt 0:00:08]} 45. Be2 {[%emt 0:07:51]} Kf6 {[%emt 0:00:30]} 46. Bd1 {[%emt 0:01:01]} Nd3 {[%emt 0:19:17]} 47. Kf3 {[%emt 0:00:32]} g6 {[%emt 0:01:13]} 48. Ke3 {[%emt 0:00:52]} Nc5 {[%emt 0:00:26]} 49. Bc2 {[%emt 0:00:12]} Na6 {[%emt 0:03:51]} 50. Bd3 {[%emt 0:00:23]} Nc5 {[%emt 0:00:19]} 51. Bc2 {[%emt 0:02:16]} Na6 {[%emt 0:00:06]} 52. Kd3 Nb4+ {[%emt 0:01:17]} 53. Kc4 {[%emt 0:12:18]} Nxc2 {[%emt 0:00:07]} 54. Kb5 {[%emt 0:00:01]} Ne3 {[%emt 0:00:12]} 55. Kxb6 {[%emt 0:00:12]} Nxd5+ {[%emt 0:00:08]} 56. exd5 {[%emt 0:01:11]} e4 {[%emt 0:00:01]} 57. a5 {[%emt 0:00:13]} e3 {[%emt 0:00:04]} 58. a6 {[%emt 0:00:04]} e2 {[%emt 0:00:02]} 59. a7 {[%emt 0:00:03]} e1=Q {[%emt 0:00:05]} 60. a8=Q {[%emt 0:00:06]} Qxg3 {[%emt 0:03:08]} 61. Qd8+ {[%emt 0:00:16]} Kg7 {[%emt 0:00:36]} 62. Qxd6 {[%emt 0:00:16]} Qb3+ {[%emt 0:00:50]} 63. Kc7 {[%emt 0:00:28]} Qc4+ {[%emt 0:01:02]} 64. Kd8 {[%emt 0:00:23]} Kg8 {[%emt 0:00:25]} 65. Qe5 {[%emt 0:00:45]} Qb4 {[%emt 0:00:31]} 66. d6 {[%emt 0:00:41]} Qb8+ {[%emt 0:00:31]} 67. Ke7 {[%emt 0:00:06]} 1-0

[Event "HUN-ch Preliminary 2019"]
[Site "Budapest"]
[Date "2019.12.05"]
[Round "1.2"]
[White "Gonda, Laszlo"]
[Black "Sipos, Istvan"]
[Result "1/2-1/2"]
[ECO "D31"]
[WhiteElo "2515"]
[BlackElo "2473"]
[Annotator "ChessBase"]
[PlyCount "41"]
[EventDate "2019.12.04"]
[EventType "k.o."]
[EventCountry "HUN"]
[SourceTitle "playchess.com"]
[Source "ChessBase"]
[SourceQuality "1"]
[TimeControl "40/5400+30:1800+30"]

1. d4 {[%emt 0:00:09]} e6 {[%emt 0:00:40]} 2. c4 {[%emt 0:00:26]} d5 {[%emt 0:00:43]} 3. Nc3 {[%emt 0:00:06]} Bb4 {[%emt 0:02:26]} 4. e3 {[%emt 0:01:08]} Nf6 {[%emt 0:01:27]} 5. a3 {[%emt 0:00:25]} Bxc3+ {[%emt 0:01:04]} 6. bxc3 {[%emt 0:01:32]} O-O {[%emt 0:03:28]} 7. cxd5 {[%emt 0:00:14]} exd5 {[%emt 0:01:08]} 8. Bd3 {[%emt 0:00:02]} c5 {[%emt 0:09:52]} 9. Ne2 {[%emt 0:00:07]} b6 {[%emt 0:11:00]} 10. O-O {[%emt 0:00:15]} cxd4 {[%emt 0:03:05]} 11. cxd4 {[%emt 0:00:43]} Ba6 {[%emt 0:00:18]} 12. f3 {[%emt 0:04:51]} Re8 {[%emt 0:01:44]} 13. Ng3 {[%emt 0:00:30]} Qc8 {[%emt 0:01:34]} 14. Ra2 {[%emt 0:13:30]} Bxd3 {[%emt 0:07:17]} 15. Qxd3 {[%emt 0:00:12]} Qa6 {[%emt 0:00:07]} 16. Qd1 {[%emt 0:01:34]} Nc6 {[%emt 0:06:10]} 17. Re2 {[%emt 0:01:07]} Rad8 {[%emt 0:05:25]} 18. Bb2 {[%emt 0:00:55]} Qc4 {[%emt 0:09:45]} 19. Rfe1 {[%emt 0:24:54]} h6 {[%emt 0:09:37]} 20. Rd2 {[%emt 0:00:45]} Na5 {[%emt 0:01:58]} 21. e4 1/2-1/2

[Event "HUN-ch Preliminary 2019"]
[Site "Budapest"]
[Date "2019.12.05"]
[Round "1.2"]
[White "Horvath, Adam"]
[Black "Czebe, Attila"]
[Result "0-1"]
[ECO "C41"]
[WhiteElo "2489"]
[BlackElo "2374"]
[Annotator "ChessBase"]
[PlyCount "80"]
[EventDate "2019.12.04"]
[EventType "k.o."]
[EventCountry "HUN"]
[SourceTitle "playchess.com"]
[Source "ChessBase"]
[SourceQuality "1"]
[TimeControl "40/5400+30:1800+30"]

1. e4 {[%emt 0:00:03]} d6 {[%emt 0:03:41]} 2. d4 {[%emt 0:00:16]} Nf6 {[%emt 0:00:03]} 3. Nc3 {[%emt 0:00:14]} e5 {[%emt 0:00:03]} 4. Nf3 {[%emt 0:00:11]} Nbd7 {[%emt 0:00:05]} 5. Bc4 {[%emt 0:00:12]} Be7 {[%emt 0:00:04]} 6. a4 {[%emt 0:00:17]} O-O {[%emt 0:00:10]} 7. O-O {[%emt 0:00:09]} c6 {[%emt 0:00:04]} 8. h3 {[%emt 0:00:32]} a5 {[%emt 0:04:33]} 9. Re1 {[%emt 0:05:58]} Nb6 {[%emt 0:00:52]} 10. Ba2 {[%emt 0:00:33]} Nfd7 {[%emt 0:00:34]} 11. dxe5 {[%emt 0:01:24]} dxe5 {[%emt 0:00:41]} 12. Be3 {[%emt 0:00:13]} Qc7 {[%emt 0:00:55]} 13. Ng5 {[%emt 0:02:07]} Bxg5 {[%emt 0:05:38]} 14. Bxg5 {[%emt 0:00:55]} Nc5 {[%emt 0:00:10]} 15. Be3 {[%emt 0:01:41]} Ne6 {[%emt 0:05:59]} 16. Re2 {[%emt 0:00:30]} Re8 {[%emt 0:01:04]} 17. Rd2 {[%emt 0:12:07]} Nd7 {[%emt 0:00:59]} 18. Qf3 {[%emt 0:11:25]} Ndf8 {[%emt 0:01:34]} 19. Rad1 {[%emt 0:01:43]} b6 {[%emt 0:12:12]} 20. Rd6 {[%emt 0:13:40]} Ra7 {[%emt 0:01:14]} 21. h4 {[%emt 0:14:34]} Rb7 {[%emt 0:09:36]} 22. Qg3 {[%emt 0:06:34]} Ng6 {[%emt 0:00:54]} 23. h5 {[%emt 0:05:00]} Ngf4 {[%emt 0:00:08]} 24. Bxe6 {[%emt 0:08:55]} Bxe6 {[%emt 0:00:03]} 25. Bxf4 {[%emt 0:00:22]} exf4 {[%emt 0:00:03]} 26. Qxf4 {[%emt 0:00:06]} h6 {[%emt 0:00:20]} 27. e5 {[%emt 0:01:40]} b5 {[%emt 0:05:30]} 28. Ne4 {[%emt 0:02:18]} bxa4 {[%emt 0:01:01]} 29. Qg3 {[%emt 0:00:59]} Kh8 {[%emt 0:01:11]} 30. Nc5 {[%emt 0:00:07]} Ra7 {[%emt 0:01:56]} 31. R1d4 {[%emt 0:03:07]} Bf5 {[%emt 0:02:13]} 32. Qf4 {[%emt 0:02:05]} Qc8 {[%emt 0:01:05]} 33. Nxa4 {[%emt 0:05:31]} Rae7 {[%emt 0:01:41]} 34. Nb6 {[%emt 0:00:27]} Qc7 {[%emt 0:04:13]} 35. Qxf5 {[%emt 0:00:14]} Rxe5 {[%emt 0:00:22]} 36. Qf4 {[%emt 0:01:09]} Qxb6 {[%emt 0:00:44]} 37. Qxf7 {[%emt 0:00:21]} Re1+ {[%emt 0:05:24]} 38. Kh2 {[%emt 0:00:04]} Qb8 {[%emt 0:00:05]} 39. g3 {[%emt 0:01:08]} Rf8 {[%emt 0:00:05]} 40. Qxf8+ {[%emt 0:00:00]} Qxf8 {[%emt 0:00:00]} 0-1

[Event "HUN-ch Preliminary 2019"]
[Site "Budapest"]
[Date "2019.12.05"]
[Round "1.2"]
[White "Videki, Sandor"]
[Black "Horvath, Csaba"]
[Result "0-1"]
[ECO "B40"]
[WhiteElo "2397"]
[BlackElo "2513"]
[Annotator "ChessBase"]
[PlyCount "78"]
[EventDate "2019.12.04"]
[EventType "k.o."]
[EventCountry "HUN"]
[SourceTitle "playchess.com"]
[Source "ChessBase"]
[SourceQuality "1"]
[TimeControl "40/5400+30:1800+30"]

1. e4 {[%emt 0:00:02]} c5 {[%emt 0:03:31]} 2. Nf3 {[%emt 0:00:06]} e6 {[%emt 0:00:11]} 3. c3 {[%emt 0:00:20]} d5 {[%emt 0:00:36]} 4. exd5 {[%emt 0:00:33]} Qxd5 {[%emt 0:00:25]} 5. d4 {[%emt 0:00:34]} cxd4 {[%emt 0:02:58]} 6. Qxd4 {[%emt 0:04:32]} Nf6 {[%emt 0:00:22]} 7. Qxd5 {[%emt 0:07:34]} Nxd5 {[%emt 0:01:05]} 8. Bc4 {[%emt 0:09:33]} Nb6 {[%emt 0:05:15]} 9. Be2 {[%emt 0:02:40]} Nc6 {[%emt 0:03:05]} 10. Nbd2 {[%emt 0:01:11]} f6 {[%emt 0:03:02]} 11. O-O {[%emt 0:01:20]} e5 {[%emt 0:01:04]} 12. Nc4 {[%emt 0:01:35]} Bc5 {[%emt 0:11:32]} 13. Nfd2 {[%emt 0:14:40]} Be6 {[%emt 0:07:03]} 14. b4 {[%emt 0:06:14]} Nxc4 {[%emt 0:02:31]} 15. Bxc4 {[%emt 0:00:54]} Bxc4 {[%emt 0:00:38]} 16. Nxc4 {[%emt 0:00:05]} Be7 {[%emt 0:00:33]} 17. Rd1 {[%emt 0:07:04]} Rc8 {[%emt 0:28:09]} 18. Nd6+ {[%emt 0:04:59]} Bxd6 {[%emt 0:00:04]} 19. Rxd6 {[%emt 0:00:04]} Ne7 {[%emt 0:06:00]} 20. Bb2 {[%emt 0:05:43]} Nf5 {[%emt 0:02:51]} 21. Rd5 {[%emt 0:02:28]} Ke7 {[%emt 0:01:32]} 22. Rad1 {[%emt 0:05:17]} Rhd8 {[%emt 0:00:58]} 23. a4 {[%emt 0:08:44]} Rxd5 {[%emt 0:02:37]} 24. Rxd5 {[%emt 0:00:02]} Ke6 {[%emt 0:01:27]} 25. Rd1 {[%emt 0:00:45]} Nd6 {[%emt 0:00:47]} 26. Kf1 {[%emt 0:00:39]} Nc4 {[%emt 0:00:45]} 27. Ba1 {[%emt 0:04:59]} Rc6 {[%emt 0:02:30]} 28. Ke2 {[%emt 0:00:50]} Rd6 {[%emt 0:01:02]} 29. Rxd6+ {[%emt 0:01:55]} Kxd6 {[%emt 0:00:02]} 30. Kd3 {[%emt 0:00:07]} Kd5 {[%emt 0:00:05]} 31. Kc2 {[%emt 0:01:17]} e4 {[%emt 0:01:47]} 32. g3 {[%emt 0:01:23]} f5 {[%emt 0:01:41]} 33. h4 {[%emt 0:00:10]} g6 {[%emt 0:00:11]} 34. Kb3 {[%emt 0:04:27]} h6 {[%emt 0:00:35]} 35. Kc2 {[%emt 0:00:05]} g5 {[%emt 0:00:26]} 36. h5 {[%emt 0:00:04]} f4 {[%emt 0:00:16]} 37. gxf4 {[%emt 0:00:38]} gxf4 {[%emt 0:00:02]} 38. Kd1 {[%emt 0:00:46]} f3 {[%emt 0:02:20]} 39. Ke1 {[%emt 0:01:10]} Ke5 {[%emt 0:00:09]} 0-1

[Event "HUN-ch Preliminary 2019"]
[Site "Budapest"]
[Date "2019.12.04"]
[Round "1.5"]
[White "Nemeth, Miklos"]
[Black "Kantor, Gergely"]
[Result "1-0"]
[ECO "C44"]
[WhiteElo "2496"]
[BlackElo "2541"]
[Annotator "ChessBase"]
[PlyCount "91"]
[EventDate "2019.12.04"]
[EventType "k.o."]
[EventCountry "HUN"]
[SourceTitle "playchess.com"]
[Source "ChessBase"]
[SourceQuality "1"]
[TimeControl "40/5400+30:1800+30"]

1. e4 {[%emt 0:00:05]} e5 {[%emt 0:00:04]} 2. Nf3 {[%emt 0:00:04]} Nc6 {[%emt 0:00:03]} 3. c3 {[%emt 0:00:06]} Nf6 {[%emt 0:02:19]} 4. d3 {[%emt 0:00:10]} g6 {[%emt 0:03:15]} 5. Be2 {[%emt 0:01:39]} Bg7 {[%emt 0:01:23]} 6. O-O {[%emt 0:01:56]} O-O {[%emt 0:00:50]} 7. a4 {[%emt 0:00:34]} d5 {[%emt 0:09:11]} 8. Qc2 {[%emt 0:00:17]} a5 {[%emt 0:01:24]} 9. Na3 {[%emt 0:00:53]} h6 {[%emt 0:00:32]} 10. Nb5 {[%emt 0:03:14]} Be6 {[%emt 0:02:33]} 11. Be3 {[%emt 0:11:14]} Qe7 {[%emt 0:08:11]} 12. Nd2 {[%emt 0:07:19]} Rad8 {[%emt 0:04:51]} 13. Rad1 {[%emt 0:10:14]} Ng4 {[%emt 0:11:21]} 14. Bxg4 {[%emt 0:08:16]} Bxg4 {[%emt 0:00:05]} 15. f3 {[%emt 0:00:08]} Be6 {[%emt 0:01:43]} 16. Rfe1 {[%emt 0:08:20]} f5 {[%emt 0:11:01]} 17. exd5 {[%emt 0:07:06]} Rxd5 {[%emt 0:00:45]} 18. f4 {[%emt 0:03:25]} g5 {[%emt 0:04:30]} 19. fxe5 {[%emt 0:01:22]} f4 {[%emt 0:08:56]} 20. Bf2 {[%emt 0:00:06]} Nxe5 {[%emt 0:09:50]} 21. d4 {[%emt 0:05:18]} c6 {[%emt 0:00:06]} 22. c4 {[%emt 0:07:39]} Rdd8 {[%emt 0:00:21]} 23. dxe5 {[%emt 0:02:19]} cxb5 {[%emt 0:00:52]} 24. cxb5 {[%emt 0:00:28]} Rc8 {[%emt 0:02:02]} 25. Qe4 {[%emt 0:02:05]} g4 {[%emt 0:00:55]} 26. Nf1 {[%emt 0:06:00]} Rf5 {[%emt 0:00:19]} 27. Qd4 {[%emt 0:01:15]} Qg5 {[%emt 0:03:17]} 28. Qb6 {[%emt 0:00:26]} Re8 {[%emt 0:01:34]} 29. Re4 {[%emt 0:06:41]} Rxe5 {[%emt 0:00:00]} 30. Rxe5 {[%emt 0:00:20]} Bxe5 {[%emt 0:02:51]} 31. Qxb7 {[%emt 0:02:28]} g3 {[%emt 0:01:00]} 32. hxg3 {[%emt 0:00:40]} fxg3 {[%emt 0:00:26]} 33. Be3 {[%emt 0:00:04]} Qh5 {[%emt 0:00:52]} 34. Qc6 {[%emt 0:00:41]} Bb3 {[%emt 0:02:05]} 35. Rd3 {[%emt 0:01:26]} Rf8 {[%emt 0:00:53]} 36. Qxh6 {[%emt 0:01:23]} Qe2 {[%emt 0:06:15]} 37. Qg6+ {[%emt 0:00:14]} Bg7 {[%emt 0:00:56]} 38. Nxg3 {[%emt 0:00:09]} Qe1+ {[%emt 0:00:05]} 39. Kh2 {[%emt 0:00:04]} Bf7 {[%emt 0:01:12]} 40. Qg4 {[%emt 0:00:00]} Be8 {[%emt 0:00:00]} 41. Bh6 {[%emt 0:05:03]} Rf7 {[%emt 0:01:13]} 42. Re3 {[%emt 0:02:07]} Bd7 {[%emt 0:00:20]} 43. Qg6 {[%emt 0:02:13]} Qb4 {[%emt 0:00:56]} 44. Ne4 {[%emt 0:01:42]} Qxb2 {[%emt 0:02:41]} 45. Ng5 {[%emt 0:00:58]} Rf2 {[%emt 0:02:07]} 46. Qh7+ {[%emt 0:00:08] Rf3} 1-0